[Event "Marmaris Karya-19 GM-May 2022"]
[Site "Icmeler-Marmaris"]
[Date "2022.05.16"]
[Round "10.2"]
[White "Sevdimaliyev, Urfan"]
[Black "Gunduz, Umut Erdem"]
[Result "1/2-1/2"]
[ECO "C54"]
[WhiteElo "2331"]
[BlackElo "2316"]
[Annotator "TA"]
[PlyCount "114"]
[EventDate "2022.05.15"]
[EventType "schev"]
[EventCountry "TUR"]
[SourceTitle "playchess.com"]
[Source "ChessBase"]
[SourceQuality "1"]
[TimeControl "5400+30"]

{[%evp 13,114,17,20,12,11,10,29,33,35,14,16,0,0,0,0,0,0,-29,0,0,35,38,42,29,30,45,36,54,28,31,52,47,46,22,52,40,49,36,58,59,65,-45,-64,-151,0,-4,-12,-6,-42,-50,-10,-3,0,0,653,635,679,190,187,186,187,201,192,197,193,137,169,137,190,196,193,64,64,64,64,64,60,57,57,57,57,57,57,8,8,8,100,100,100,25,25,25,100,100,100,100,100,100,100,100,100,100,104]} 1. e4 {[%emt 0:09:00]} e5 {[%emt 0:01:00]} 2. Bc4 {[%emt 0:00:30]} Nf6 {[%emt 0:01:30]} 3. d3 {[%emt 0:00:30]} Nc6 {[%emt 0:00:30]} 4. Nf3 {[%emt 0:01:30]} Bc5 {[%emt 0:01:30]} 5. O-O {[%emt 0:00:30]} O-O {[%emt 0:00:30]} 6. a4 {[%emt 0:00:30]} d6 {[%emt 0:03:30]} 7. c3 {[%emt 0:01:30]} a6 {[%emt 0:01:30]} 8. Nbd2 {[%emt 0:09:30] C54: Giuoco Piano: 4 c3 Nf6, main lines with 5 d4 and 5 d3.} h6 {[%emt 0:02:30]} 9. Re1 {[%emt 0:03:30][%cal Bf1e1,Be1e2,Be2a2,Ba2a6][%mdl 32]} Re8 {[%emt 0:01:30]} 10. b4 {[%emt 0:06:30] White has an edge.} Bb6 {[%emt 0:02:30]} 11. a5 {[%emt 0:07:30]} Ba7 {[%emt 0:00:00] [#]} 12. b5 $146 {[%emt 0:02:30]} ({Predecessor:} 12. Bb3 d5 13. exd5 Nxd5 14. Ne4 Be6 15. Bd2 Nf6 16. Ba4 Nxe4 17. dxe4 Qf6 18. Bxc6 bxc6 {1-0 (62) Salgado Lopez,I (2619)-Sanal,V (2404) Skopje 2013}) 12... axb5 {[%emt 0:05:00]} 13. Bxb5 {[%emt 0:01:30]} Ng4 {[%emt 0:05:30]} 14. Re2 {[%emt 0:08:30]} Bd7 {[%emt 0:01:30][%cal Oc6a5]} 15. h3 {[%emt 0:02:30]} Nf6 {[%emt 0:03:30]} 16. Nc4 {[%emt 0:06:30]} Nh5 {[%emt 0:17:30]} 17. Rea2 {[%emt 0:03:30]} Rb8 {[%emt 0:07:30]} 18. a6 {[%emt 0:04:30]} bxa6 {[%emt 0:03:30]} 19. Bxc6 {[%emt 0:00:30]} Bxc6 {[%emt 0:00:30]} 20. Rxa6 {[%emt 0:00:30]} Bb6 {[%emt 0:00:00]} 21. Nxb6 {[%emt 0:01:30]} cxb6 {[%emt 0:01:00]} 22. c4 {[%emt 0:00:30][%cal Of3d4]} Nf6 {[%emt 0:00:30][%cal Bh5f6,Bf6d7,Bd7c5][%mdl 32]} 23. Nh2 {[%emt 0:04:30]} Nd7 {[%emt 0:00:30]} 24. Qh5 {[%emt 0:03:30]} Re6 {[%emt 0:01:30]} 25. Ng4 {[%emt 0:01:30][%cal Rc1h6]} Nc5 {[%emt 0:00:30][%csl LRa6,LRd3]} 26. Ra7 {[%emt 0:00:30]} Qf8 {[%emt 0:00:30]} 27. f4 {[%emt 0:00:30] White is more active.} ({White should play} 27. R1a3 $1 $14) 27... exf4 $1 $15 {[%emt 0:06:30]} (27... Nxd3 $2 28. f5 Rbe8 29. fxe6 $18) 28. R1a3 {[%emt 0:12:01]} (28. Nf2 $15) 28... Be8 $2 {[%emt 0:09:30]} (28... b5 $17 29. Rc7 Be8) 29. Qd5 {[%emt 0:04:37]} b5 {[%emt 0:05:04]} 30. Ra8 {[%emt 0:00:25]} Rxa8 {[%emt 0:00:44]} 31. Rxa8 {[%emt 0:00:07]} bxc4 {[%emt 0:00:41]} (31... Na4 $5 {[%cal Ra4c3]} 32. Qd4 (32. Bxf4 Nb6 $17) 32... bxc4 $11) 32. Qxc4 {[%emt 0:00:15]} Nd7 {[%emt 0:02:14] And now ...Nb6 would win.} 33. Qb3 {[%emt 0:01:13] Against Nb6} ({Wrong is} 33. Bxf4 $2 Nb6 34. Rxe8 Qxe8 $19) 33... d5 $2 {[%emt 0:00:46][%mdl 8192]} (33... Nc5 $11 34. Qd5 Nd7) 34. Ba3 $18 {[%emt 0:00:58]} Nc5 {[%emt 0:01:17]} 35. Qc3 {[%emt 0:01:26]} (35. Qxd5 Qe7 36. Bxc5) 35... Qd6 {[%emt 0:02:14]} 36. Qxc5 {[%emt 0:01:05]} Qxc5+ {[%emt 0:00:09]} 37. Bxc5 {[%emt 0:00:01]} dxe4 {[%emt 0:00:00]} 38. dxe4 {[%emt 0:01:21]} Rxe4 {[%emt 0:00:01]} 39. Nf2 {[%emt 0:01:17]} ({Better is} 39. Bd6 $1 $18 {Ne5 is the strong threat.} f6 40. Bxf4 $1 {[%mdl 512]}) 39... Re1+ $16 {[%emt 0:00:01]} 40. Kh2 {[%emt 0:00:02]} Kh7 {[%emt 0:01:40]} (40... Re6 $16 41. h4 f6) 41. Nd3 $18 {[%emt 0:00:39][%csl LRe1,LRf4]} Bc6 {[%emt 0:01:54]} 42. Nxe1 {[%emt 0:01:24]} (42. Rc8 $18 Rd1 43. Nxf4 (43. Rxc6 Rxd3 44. Ra6 Rd5 $16)) 42... Bxa8 $14 {[%emt 0:00:01]} 43. Nd3 {[%emt 0:00:18]} g5 $1 {[%emt 0:00:01]} 44. Ne5 {[%emt 0:00:22]} Bd5 {[%emt 0:00:15]} 45. Be7 {[%emt 0:00:34]} Kg7 {[%emt 0:00:18] Against Bf6+} 46. Kg1 {[%emt 0:00:43]} Be6 {[%emt 0:00:01]} 47. Kf2 {[%emt 0:00:17]} f6 {[%emt 0:00:12]} 48. Ng4 {[%emt 0:00:48]} (48. Nf3 $14) 48... Bxg4 $11 {[%emt 0:00:38]} 49. hxg4 {[%emt 0:00:01][%mdl 4096] Endgame KB-KP} Kg6 {[%emt 0:00:01] [#]} (49... Kf7 $11 {remains equal.} 50. Bc5 f5) 50. Bf8 $1 $16 {[%emt 0:00:20]} h5 {[%emt 0:01:33] [#]} 51. gxh5+ {[%emt 0:00:14]} (51. Kf3 $1 $16) 51... Kxh5 {[%emt 0:00:02] KB-K3P} 52. Kf3 {[%emt 0:00:19]} f5 {[%emt 0:00:12]} (52... Kg6 $11) 53. Bd6 {[%emt 0:00:14] White is better.} Kg6 {[%emt 0:00:05]} 54. Be5 {[%emt 0:00:18]} Kh5 {[%emt 0:00:08]} 55. Bc7 {[%emt 0:00:29]} Kg6 {[%emt 0:00:06]} 56. Bb6 {[%emt 0:01:22]} Kh5 {[%emt 0:00:01]} 57. Bf2 {[%emt 0:00:06]} Kg6 {[%emt 0:00:05] Black defended with fortune.  Weighted Error Value: White=0.28 (precise) /Black=0.30} 1/2-1/2

[Event "Marmaris Karya-19 GM-May 2022"]
[Site "Icmeler-Marmaris"]
[Date "2022.05.16"]
[Round "10.4"]
[White "Toufighi, Homayoon"]
[Black "Darban, Morteza"]
[Result "1-0"]
[ECO "D02"]
[WhiteElo "2439"]
[BlackElo "2279"]
[Annotator "TA"]
[PlyCount "60"]
[EventDate "2022.05.15"]
[EventType "schev"]
[EventCountry "TUR"]
[SourceTitle "playchess.com"]
[Source "ChessBase"]
[SourceQuality "1"]
[TimeControl "5400+30"]

{[%evp 17,47,8,8,19,41,45,38,46,191,211,193,-327,182,206,350,331,339,323,323,325,519,516,529,518,518,540,506,508,495,491,526,520]} 1. d4 {[%emt 0:16:00]} Nf6 {[%emt 0:01:00]} 2. Nf3 {[%emt 0:02:30]} e6 {[%emt 0:01:30]} 3. Bf4 {[%emt 0:00:00]} c5 {[%emt 0:02:30]} 4. e3 {[%emt 0:00:00]} Nc6 {[%emt 0:00:00]} 5. Nbd2 {[%emt 0:00:30]} d5 {[%emt 0:03:00]} 6. c3 {[%emt 0:00:00]} Bd6 {[%emt 0:00:30]} 7. Bg3 {[%emt 0:00:00]} O-O {[%emt 0:04:30]} 8. Bd3 {[%emt 0:00:30]} Qe7 {[%emt 0:00:00]} 9. Ne5 {[%emt 0:00:00]} Nd7 {[%emt 0:08:00]} 10. Nxd7 {[%emt 0:01:00] D02: 1 d4 d5 2 Nf3 sidelines, including 2...Nf6 3 g3 and 2...Nf6 3 Bf4.} (10. f4 {seems wilder.} f5 11. O-O Nf6 12. Bh4) 10... Bxd7 {[%emt 0:01:30]} (10... Qxd7 {is interesting.} 11. dxc5 Bxc5 12. Nf3 b6) 11. Bxd6 {[%emt 0:00:00]} ({Of course not} 11. Qh5 f5 $11) 11... Qxd6 {[%emt 0:00:00]} 12. dxc5 {[%emt 0:00:00] White is slightly better.} Qxc5 {[%emt 0:00:00] [#]} (12... Qc7 $14) 13. Bxh7+ $1 $18 {[%emt 0:00:30][%mdl 512]} Kxh7 {[%emt 0:01:30] [#]} 14. Qh5+ $1 {[%emt 0:00:00]} Kg8 {[%emt 0:00:00]} 15. Ne4 $1 $40 {[%emt 0:00:00][%mdl 192] Pin. White is out for blood.} Qb5 {[%emt 0:13:00] [#] is the legacy move (15...Qc4).} (15... g6 {is a better defense.} 16. Nxc5 gxh5) 16. Ng5 $1 {[%emt 0:00:00][%csl Gg5][%cal Rh5h7]} Rfd8 {[%emt 0:00:30] Hoping for ...Ne5.} (16... Qd3 $2 17. e4 Rfe8 18. Qxf7+ Kh8 19. Qxd7 $18) 17. Qxf7+ {[%emt 0:00:00]} Kh8 {[%emt 0:00:00]} 18. O-O-O {[%emt 0:00:30]} Ne5 {[%emt 0:07:00]} (18... d4 {was necessary.} 19. Qh5+ Kg8 20. exd4 Qf5) 19. Qh5+ {[%emt 0:00:00] White is clearly winning.} Kg8 {[%emt 0:00:00]} 20. Qh7+ {[%emt 0:00:00]} Kf8 {[%emt 0:00:00]} 21. Qh8+ {[%emt 0:00:30][%mdl 64] Deflection} Ke7 {[%emt 0:00:30]} 22. Qxg7+ {[%emt 0:00:00]} Kd6 {[%emt 0:00:30]} 23. Ne4+ $1 {[%emt 0:00:00][%mdl 64] Deflection} Kc6 {[%emt 0:00:00]} 24. Qxe5 {[%emt 0:00:00] [#]  Weighted Error Value: White=0.00 (flawless) /Black=0.65} {Predecessor:} Kb6 $146 25. Qd4+ Kc7 26. Qc5+ Bc6 27. Qxb5 Bxb5 28. Ng5 Kd7 29. e4 Rg8 30. f4 Kd6 {1-0 (46) Dew,B (2140)-Chan,K (2153) Hong Kong 2017} 1-0

[Event "Marmaris Karya-19 GM-May 2022"]
[Site "Icmeler-Marmaris"]
[Date "2022.05.16"]
[Round "10.5"]
[White "Maghalashvili, Davit"]
[Black "Ozdemir, Serhan Berat"]
[Result "1-0"]
[ECO "B40"]
[WhiteElo "2456"]
[BlackElo "2117"]
[Annotator "TA"]
[PlyCount "117"]
[EventDate "2022.05.15"]
[EventType "schev"]
[EventCountry "TUR"]
[SourceTitle "playchess.com"]
[Source "ChessBase"]
[SourceQuality "1"]
[TimeControl "5400+30"]

{[%evp 9,117,15,14,15,16,9,21,13,29,31,38,41,33,39,49,44,54,12,20,3,6,0,0,0,0,0,0,-50,-20,-105,-95,-94,-100,-109,-64,-89,-64,-132,-112,-111,-91,-75,52,56,53,25,33,43,54,26,101,108,108,0,213,201,224,214,309,270,383,373,392,383,374,380,368,364,388,376,470,468,551,534,494,465,417,128,279,268,268,283,312,312,554,513,545,441,2484,2181,2549,2239,2721,2633,2362,2013,2347,2059,5097,4722,4618,4610,5800,5720,4733,4882,2892,2152,29961,11222]} 1. e4 {[%emt 0:01:00]} c5 {[%emt 0:02:00]} 2. Nf3 {[%emt 0:01:30]} e6 {[%emt 0:00:30]} 3. g3 {[%emt 0:00:30]} d5 {[%emt 0:00:30]} 4. exd5 {[%emt 0:00:00]} exd5 {[%emt 0:00:00]} 5. d4 {[%emt 0:00:00]} Nf6 {[%emt 0:00:00]} 6. Bg2 {[%emt 0:00:30] B40: Sicilian: 2...e6, Unusual lines.} Nc6 {[%emt 0:00:30]} 7. O-O {[%emt 0:00:30]} Be7 {[%emt 0:00:00]} 8. dxc5 {[%emt 0:00:30] The position is equal.} Bxc5 {[%emt 0:00:00]} 9. a3 {[%emt 0:02:30]} a5 {[%emt 0:03:30] [#]} 10. Bg5 $146 {[%emt 0:06:30]} ({Predecessor:} 10. Re1+ Be6 11. Nc3 O-O 12. h3 h6 13. Qd3 Qb6 14. Rf1 Ne4 15. Nxe4 dxe4 16. Qxe4 {0-1 (34) Paul,J (2211)-Webster,D (2040) Orlando 2019}) 10... Be6 {[%emt 0:00:30]} 11. Nc3 {[%emt 0:01:30]} O-O {[%emt 0:00:30]} 12. Rb1 {[%emt 0:00:00]} Be7 {[%emt 0:10:30]} 13. Nb5 {[%emt 0:04:00]} h6 {[%emt 0:00:30]} 14. Bf4 {[%emt 0:00:00]} Rc8 {[%emt 0:04:30]} 15. Nfd4 {[%emt 0:00:00]} Bg4 {[%emt 0:02:30][%cal Be6g4,Bg4h5,Bh5g6][%mdl 32]} 16. Qd3 {[%emt 0:03:30]} Qb6 {[%emt 0:02:30]} 17. c3 {[%emt 0:09:30]} a4 {[%emt 0:05:30]} 18. Nc2 {[%emt 0:13:30]} ({White should try} 18. Rfe1 $11) 18... Bh5 {[%emt 0:01:30] [#] Strongly threatening ...Bg6.} 19. Nbd4 {[%emt 0:05:30]} (19. Bxd5 Nxd5 20. Qxd5 Bg6 $17) (19. Be3 $1 $11 {keeps the balance.} Bc5 20. Nd6) 19... Bg6 $36 {[%emt 0:00:30][%mdl 2048] Black has strong initiative.} 20. Nf5 {[%emt 0:01:30]} Bc5 {[%emt 0:01:30]} 21. Bh3 {[%emt 0:04:30]} Rfe8 {[%emt 0:03:30]} 22. Qd1 {[%emt 0:04:30]} Rcd8 {[%emt 0:04:30]} 23. Nb4 {[%emt 0:03:30]} (23. Ncd4 $1 $15) 23... Ne4 {[%emt 0:02:30][%cal Re4f2]} ({Stronger than} 23... Bxb4 24. cxb4 Ne5 25. Rc1 $15) ({Resist} 23... Nxb4 24. axb4 Bxf5 25. Bxf5 $14) 24. Nd3 {[%emt 0:00:30]} d4 {[%emt 0:04:30]} 25. c4 {[%emt 0:18:12]} Qb3 {[%emt 0:03:30]} (25... Ne7 $17 26. g4 Nxf5 27. gxf5 Bh7) 26. Qxb3 $14 {[%emt 0:01:36]} axb3 {[%emt 0:00:30]} 27. f3 $1 {[%emt 0:00:52]} Nd6 {[%emt 0:00:30]} 28. Nxc5 {[%emt 0:00:29]} Nxf5 {[%emt 0:00:30]} 29. Nxb7 {[%emt 0:00:35]} Ne3 {[%emt 0:02:30]} (29... Rd7 $1 $11 {remains equal.} 30. Nc5 Rde7) 30. Nxd8 $16 {[%emt 0:00:30]} Rxd8 {[%emt 0:00:30]} 31. Rbe1 {[%emt 0:00:30]} ({Better is} 31. Bxe3 $16 Bxb1 32. Bf4 (32. Rxb1 dxe3 33. Re1 Rd2 $11)) 31... Nxf1 $2 {[%emt 0:00:30]} (31... Nxc4 $11 {and Black has nothing to worry.} 32. Rf2 d3) 32. Bxf1 $18 {[%emt 0:00:30]} Bc2 {[%emt 0:00:30]} 33. Bd2 {[%emt 0:00:30]} d3 {[%emt 0:06:30]} (33... g5 $142 34. a4 Kg7) 34. Kf2 {[%emt 0:08:01]} Nd4 {[%emt 0:05:30]} (34... g5 $142 35. Bg2 Nb8) 35. a4 {[%emt 0:04:13][%cal Ba3a4,Ba4a5][%mdl 32]} Ne6 {[%emt 0:00:30]} 36. a5 {[%emt 0:01:11]} Nc5 {[%emt 0:00:30] [#] And now ...Na4 would win.} 37. Ra1 {[%emt 0:00:11] Inhibits Na4. Black must now prevent a6.} Na6 {[%emt 0:00:00]} 38. Ke3 {[%emt 0:00:50]} Kf8 {[%emt 0:00:00]} 39. Bc3 {[%emt 0:01:16]} Ke7 {[%emt 0:01:30]} 40. Kd2 {[%emt 0:00:23]} f6 {[%emt 0:00:30]} 41. Re1+ {[%emt 0:00:19]} Kd6 {[%emt 0:00:30]} 42. Re3 {[%emt 0:00:37]} Kc5 {[%emt 0:00:30]} 43. Bxd3 $2 {[%emt 0:03:06]} (43. Re7 $18) 43... Nb4 $2 {[%emt 0:00:30] Black cannot hold the game after this.} (43... Kc6 $16) 44. Bxb4+ {[%emt 0:00:21]} Kxb4 {[%emt 0:00:30][%mdl 4096] Endgame KRB-KRB} 45. a6 {[%emt 0:00:22]} Rd7 {[%emt 0:00:00]} 46. g4 {[%emt 0:01:55][%cal Bg3g4,Bg4h5][%mdl 32]} h5 $2 {[%emt 0:01:00]} (46... Bxd3 {might work better.} 47. Rxd3 Ra7) 47. gxh5 {[%emt 0:00:36]} f5 {[%emt 0:02:30]} 48. f4 {[%emt 0:00:13]} Ra7 {[%emt 0:01:30]} (48... Bxd3 $142 49. Rxd3 Ra7) 49. Bxc2 {[%emt 0:00:14]} bxc2 {[%emt 0:00:00] KR-KR} 50. Rc3 {[%emt 0:00:30] c5 is the strong threat.} Kc5 {[%emt 0:00:00]} 51. Ra3 {[%emt 0:00:19]} c1=Q+ {[%emt 0:01:30]} 52. Kxc1 {[%emt 0:00:06]} Kxc4 {[%emt 0:00:00]} 53. Kc2 {[%emt 0:00:16]} Kb5 {[%emt 0:00:00]} 54. Kd3 {[%emt 0:00:08]} Kb6 {[%emt 0:00:00]} 55. Kd4 {[%emt 0:00:12]} Rd7+ {[%emt 0:00:00]} 56. Ke5 {[%emt 0:00:06] White wants to mate with a7.} Ka7 {[%emt 0:00:00]} 57. Kxf5 {[%emt 0:00:07]} Rd2 {[%emt 0:00:00]} 58. h4 {[%emt 0:00:18] Threatens to win with Rg3.} Rh2 {[%emt 0:00:30]} 59. Rg3 {[%emt 0:00:11] Weighted Error Value: White=0.18 (very precise) /Black=0.40} 1-0